bitfinex-derivatives/quotes_BTCF0:USTF0_20250928
["timestamp","ask_amount","ask_price","bid_price","bid_amount"]
[1759040425958,3.70128401,109420.0,109410.0,1.62999758]
[1759040438575,3.60194036,109420.0,109410.0,1.62999758]
[1759040438765,3.24114036,109420.0,109410.0,1.62999758]
[1759040439867,1.62177128,109420.0,109410.0,1.62999758]
[1759040440173,3.24110036,109420.0,109410.0,1.62999758]
[1759040445478,2.84405582,109420.0,109410.0,2.02704212]
[1759040445778,2.84405582,109420.0,109410.0,1.62999758]
[1759040446474,2.84405582,109420.0,109410.0,2.02704212]
[1759040448683,2.01881582,109420.0,109410.0,2.02704212]
[1759040448883,2.84425582,109420.0,109410.0,2.02704212]
[1759040449081,1.59371981,109420.0,109410.0,3.18488666]
[1759040449278,1.59120438,109420.0,109410.0,4.01056666]
[1759040450478,1.59120438,109420.0,109410.0,3.18488666]
[1759040450782,1.59120438,109420.0,109410.0,3.61356212]
[1759040454980,1.59120438,109420.0,109410.0,2.78784212]
[1759040455184,1.59120438,109420.0,109410.0,3.61348212]
[1759040460790,1.59120438,109420.0,109410.0,3.67927231]
[1759040460990,1.59120438,109420.0,109410.0,2.45658777]
[1759040461292,1.59120438,109420.0,109410.0,3.67911231]
[1759040461486,1.59120438,109420.0,109410.0,3.61332212]
[1759040465096,1.59120438,109420.0,109410.0,2.78784212]
[1759040465389,1.59120438,109420.0,109410.0,3.61344212]
[1759040466695,1.59120438,109420.0,109410.0,2.39079758]
[1759040466994,1.59120438,109420.0,109410.0,3.61340212]
[1759040469893,1.59120438,109420.0,109410.0,2.78784212]
[1759040470085,1.59120438,109420.0,109410.0,3.61340212]
[1759040470693,1.59120438,109420.0,109410.0,2.78784212]
[1759040470895,1.59120438,109420.0,109410.0,3.61340212]
[1759040471596,1.59120438,109420.0,109410.0,2.78784212]
[1759040471787,1.59120438,109420.0,109410.0,3.61340212]
[1759040473494,1.59120438,109420.0,109410.0,2.78784212]
[1759040473698,1.59120438,109420.0,109410.0,3.61352212]
[1759040475293,1.59120438,109420.0,109410.0,3.67931231]
[1759040480096,1.59120438,109420.0,109410.0,3.61352212]
[1759040484004,1.59120438,109420.0,109410.0,3.25272212]
[1759040484196,1.59120438,109420.0,109410.0,3.61352212]
[1759040489604,1.59120438,109420.0,109410.0,3.63403212]
[1759040490006,1.59120438,109420.0,109410.0,3.69982231]
[1759040499408,1.59120438,109420.0,109410.0,3.29982231]
[1759040499608,1.59120438,109420.0,109410.0,2.93902231]
[1759040499812,1.59120438,109420.0,109410.0,3.29982231]
[1759040500505,1.59120438,109420.0,109410.0,2.90277777]
[1759040500706,1.59120438,109420.0,109410.0,3.79583274]
[1759040501205,1.59120438,109420.0,109410.0,2.97015274]
[1759040501410,1.88888937,109420.0,109410.0,3.79607274]
[1759040501611,1.88888937,109420.0,109410.0,3.49838775]
[1759040503422,1.88888937,109420.0,109410.0,3.13758775]
[1759040503721,1.88888937,109420.0,109410.0,3.79607274]
[1759040504122,1.88888937,109420.0,109410.0,2.97015274]
[1759040504319,1.88888937,109420.0,109410.0,3.79611274]
[1759040505120,1.88888937,109420.0,109410.0,2.90301777]
[1759040505320,1.59120438,109420.0,109410.0,3.49838775]
[1759040505622,1.88888937,109420.0,109410.0,3.79607274]
[1759040506025,1.88888937,109420.0,109410.0,3.49838775]
[1759040513124,0.30545453,109420.0,109410.0,3.49838775]
[1759040518132,0.00776954,109420.0,109410.0,3.49838775]
[1759040521535,0.00776954,109420.0,109410.0,3.13758775]
[1759040521833,0.00776954,109420.0,109410.0,3.49838775]
[1759040522436,0.00776954,109420.0,109410.0,3.49886775]
[1759040522934,0.30545453,109420.0,109410.0,3.49886775]
[1759040524139,0.30545453,109420.0,109410.0,3.79655274]
[1759040524437,0.00776954,109420.0,109410.0,3.79655274]
[1759040527426,0.00776954,109420.0,109410.0,2.90349777]
[1759040527632,0.00776954,109420.0,109410.0,3.79655274]
[1759040533642,0.00776954,109420.0,109410.0,2.07709777]
[1759040533841,0.00776954,109420.0,109410.0,3.79643274]
[1759040534038,0.00776954,109420.0,109410.0,2.97015274]
[1759040534237,0.00776954,109420.0,109410.0,3.79639274]
[1759040535235,0.30545453,109420.0,109410.0,3.79639274]
[1759040535845,0.00776954,109420.0,109410.0,3.79639274]
[1759040536045,0.30545453,109420.0,109410.0,3.79639274]
[1759040541449,0.30545453,109420.0,109410.0,2.97015274]
[1759040541752,0.30545453,109420.0,109410.0,3.79635274]
[1759040541949,0.29768499,109420.0,109410.0,3.79635274]
[1759040543051,0.29768499,109420.0,109410.0,2.97015274]
[1759040543252,0.29768499,109420.0,109410.0,3.79631274]
[1759040544452,0.29768499,109420.0,109410.0,3.49862775]
[1759040544652,0.29768499,109420.0,109410.0,3.49858775]
[1759040545155,0.29768499,109420.0,109410.0,3.49854775]
[1759040547050,0.30545262,109420.0,109410.0,3.49854775]
[1759040547251,0.30545262,109420.0,109410.0,3.79623274]
[1759040550452,0.00776763,109420.0,109410.0,3.79623274]
[1759040550647,0.30545262,109420.0,109410.0,3.79623274]
[1759040555253,0.30545262,109420.0,109410.0,3.49854775]
[1759040555956,0.30545262,109420.0,109410.0,3.13774775]
[1759040556155,0.30545262,109420.0,109410.0,3.49854775]
[1759040559458,0.30545262,109420.0,109410.0,2.90317777]
[1759040559750,0.30545262,109420.0,109410.0,3.49818775]
[1759040560256,0.30545262,109420.0,109410.0,2.67246775]
[1759040560557,0.40472302,109420.0,109410.0,3.29977316]
[1759040560746,0.40472302,109420.0,109410.0,2.07709777]
[1759040560952,0.40472302,109420.0,109410.0,3.30009316]
[1759040567157,0.40472302,109420.0,109410.0,3.23430297]
[1759040570060,0.40472302,109420.0,109410.0,2.83734758]
[1759040570258,0.40472302,109420.0,109410.0,3.23430297]
[1759040571960,0.40472302,109420.0,109410.0,2.87350297]
[1759040572157,0.40472302,109420.0,109410.0,3.23430297]
[1759040574459,0.40472302,109420.0,109410.0,2.87350297]
[1759040574660,0.40472302,109420.0,109410.0,3.23430297]
[1759040578660,0.40472302,109420.0,109410.0,2.87350297]
[1759040578850,0.40472302,109420.0,109410.0,3.23430297]
[1759040579460,0.40472302,109420.0,109410.0,2.87350297]
[1759040579761,0.40472302,109420.0,109410.0,3.23430297]
[1759040582258,0.40472302,109420.0,109410.0,3.30009316]
[1759040582864,0.40472302,109420.0,109410.0,3.32546316]
[1759040584367,0.82463266,109420.0,109410.0,2.50227758]
[1759040585152,0.90925266,109420.0,109410.0,2.50227758]
[1759040585856,0.90925266,109420.0,109410.0,1.67587758]
[1759040585857,1.40059976,109420.0,109410.0,1.67587758]
[1759040586058,1.76648976,109420.0,109410.0,0.17587758]
[1759040586266,1.84142976,109420.0,109410.0,0.17587758]
[1759040586564,1.84142976,109420.0,109410.0,1.67587758]
[1759040587066,1.84142976,109420.0,109410.0,0.17587758]
[1759040592561,2.66834976,109420.0,109410.0,0.17587758]
[1759040604678,2.30754976,109420.0,109410.0,0.17587758]
[1759040604878,2.66834976,109420.0,109410.0,0.17587758]
[1759040607278,1.84142976,109420.0,109410.0,0.17587758]
[1759040607481,2.66798976,109420.0,109410.0,0.17587758]
[1759040608680,2.30718976,109420.0,109410.0,0.17587758]
[1759040608983,2.66798976,109420.0,109410.0,0.17587758]
[1759040614573,1.84142976,109420.0,109410.0,0.17587758]
[1759040614774,2.66782976,109420.0,109410.0,0.17587758]
[1759040615284,2.64487551,109420.0,109410.0,0.17587758]
[1759040615474,2.66766165,109420.0,109410.0,0.17587758]
[1759040619688,2.26766165,109420.0,109410.0,0.17587758]
[1759040620384,1.90686165,109420.0,109410.0,0.17587758]
[1759040620579,2.36720016,109420.0,109410.0,0.17587758]
[1759040624790,1.54080016,109420.0,109410.0,0.17587758]
[1759040624986,2.36696016,109420.0,109410.0,0.17587758]
[1759040625289,2.36692016,109420.0,109410.0,0.17587758]
[1759040633995,2.00612016,109420.0,109410.0,0.17587758]
[1759040634199,2.36692016,109420.0,109410.0,0.17587758]
[1759040634396,2.00612016,109420.0,109410.0,0.17587758]
[1759040634594,2.36692016,109420.0,109410.0,0.17587758]
[1759040635998,2.00612016,109420.0,109410.0,0.17587758]
[1759040636597,2.36692016,109420.0,109410.0,0.17587758]
[1759040646301,1.54080016,109420.0,109410.0,0.17587758]
[1759040646504,2.36652016,109420.0,109410.0,0.17587758]
[1759040647199,1.54080016,109420.0,109410.0,0.17587758]
[1759040647402,2.36652016,109420.0,109410.0,0.17587758]
[1759040648103,3.93588468,109420.0,109410.0,0.17587758]
[1759040648905,3.11016468,109420.0,109410.0,0.17587758]
[1759040649111,3.93588468,109420.0,109410.0,0.17587758]
[1759040654912,3.11016468,109420.0,109410.0,0.17587758]
[1759040655217,3.93588468,109420.0,109410.0,0.17587758]
[1759040656109,3.84453758,109420.0,109410.0,0.17587758]
[1759040656504,3.48373758,109420.0,109410.0,0.17587758]
[1759040656704,3.84453758,109420.0,109410.0,0.17587758]
[1759040657511,3.48373758,109420.0,109410.0,0.17587758]
[1759040657813,3.84453758,109420.0,109410.0,0.17587758]
[1759040662223,3.01881758,109420.0,109410.0,0.17587758]
[1759040662513,3.01881758,109420.0,109410.0,0.47369401]
[1759040662514,2.95108829,109420.0,109410.0,0.47369401]
[1759040662712,3.84453758,109420.0,109410.0,0.47369401]
[1759040663719,3.84453758,109420.0,109410.0,0.17587758]
[1759040666921,3.84463817,109420.0,109410.0,0.17587758]
[1759040668524,3.01891817,109420.0,109410.0,0.17587758]
[1759040668727,3.84463817,109420.0,109410.0,0.17587758]
[1759040670119,3.01891817,109420.0,109410.0,0.17587758]
[1759040670325,3.84463817,109420.0,109410.0,0.17587758]
[1759040672223,3.01891817,109420.0,109410.0,0.17587758]
[1759040672426,3.84463817,109420.0,109410.0,0.17587758]
[1759040673720,3.48383817,109420.0,109410.0,0.17587758]
[1759040674027,3.84463817,109420.0,109410.0,0.17587758]
[1759040674729,3.82185203,109420.0,109410.0,0.17587758]
[1759040674924,2.65803051,109420.0,109410.0,0.17587758]
[1759040675123,3.48375051,109420.0,109410.0,0.17587758]
[1759040675523,3.48375051,109420.0,109410.0,0.47369401]
[1759040675921,3.18593408,109420.0,109410.0,0.47369401]
[1759040676623,3.48375051,109420.0,109410.0,0.47369401]
[1759040677328,3.48375051,109420.0,109410.0,0.17587758]
[1759040679030,3.48375051,109420.0,109410.0,0.47369401]
[1759040680531,3.38438004,109420.0,109410.0,0.17587758]
[1759040729969,3.74518004,109420.0,109410.0,0.17587758]
[1759040733469,2.95110122,109420.0,109410.0,0.17587758]
[1759040733670,3.74518004,109420.0,109410.0,0.17587758]
[1759040734976,3.38438004,109420.0,109410.0,0.17587758]
[1759040735163,3.74518004,109420.0,109410.0,0.17387758]
[1759040735366,3.74518004,109420.0,109410.0,0.17587758]
[1759040740582,3.84450458,109420.0,109410.0,0.17587758]
[1759040741884,3.93585198,109420.0,109410.0,0.15309758]
[1759040742181,3.93585198,109420.0,109410.0,0.1412313]
[1759040743077,3.93585198,109420.0,109410.0,0.1392313]
[1759040743278,3.93685198,109420.0,109410.0,0.1392313]
[1759040744982,3.93585198,109420.0,109410.0,0.1392313]
[1759040745181,3.94285198,109420.0,109410.0,0.1392313]
[1759040749680,3.58205198,109420.0,109410.0,0.1392313]
[1759040749886,3.94285198,109420.0,109410.0,0.1392313]
[1759040753387,3.94285198,109420.0,109410.0,0.1372313]
[1759040753685,3.94685198,109420.0,109410.0,0.1372313]
[1759040761295,3.94685198,109420.0,109410.0,0.04588]
[1759040768202,2.37748746,109420.0,109410.0,0.04588]
[1759040770415,0.0913557,109410.0,109400.0,1.01342]
[1759040770707,1.36998776,109410.0,109400.0,1.01342]
[1759040770900,2.95997936,109410.0,109400.0,1.01342]
[1759040771598,2.96397936,109410.0,109400.0,1.0]
[1759040772105,3.03714264,109410.0,109400.0,1.0]
[1759040772306,3.03914264,109410.0,109400.0,1.0]
[1759040772811,3.12377264,109410.0,109400.0,1.0]
[1759040773512,3.19871264,109410.0,109400.0,1.0]
[1759040774415,3.60380264,109410.0,109400.0,0.74060159]
[1759040775604,4.43052264,109410.0,109400.0,0.74060159]
[1759040776415,3.60380264,109410.0,109400.0,0.74060159]
[1759040776916,4.43076264,109410.0,109400.0,0.74060159]
[1759040778609,4.43072264,109410.0,109400.0,0.74060159]
[1759040779719,3.60380264,109410.0,109400.0,0.74060159]
[1759040779911,4.43072264,109410.0,109400.0,0.74060159]
[1759040781208,4.43102041,109410.0,109400.0,0.74060159]
[1759040783529,3.60410041,109410.0,109400.0,0.74060159]
[1759040783717,4.43094041,109410.0,109400.0,0.74060159]
[1759040785427,4.79174041,109410.0,109400.0,0.74060159]
[1759040789429,4.79950963,109410.0,109400.0,0.74060159]
[1759040799535,4.39950963,109410.0,109400.0,0.74060159]
[1759040802539,4.30061451,109410.0,109400.0,0.74060159]
[1759040803242,4.33351188,109410.0,109400.0,0.74060159]
[1759040819056,3.50667188,109410.0,109400.0,0.74060159]
[1759040819548,4.33351188,109410.0,109400.0,0.74060159]
[1759040819941,4.33351188,109410.0,109400.0,0.83196569]
[1759040820141,4.31051563,109410.0,109400.0,0.83196569]
[1759040820353,4.33354294,109410.0,109400.0,0.83196569]
[1759040821549,4.33354294,109410.0,109400.0,0.74060159]
[1759040825852,3.61194294,109410.0,109400.0,0.74060159]
[1759040826053,4.33354294,109410.0,109400.0,0.74060159]
[1759040828543,5.13079706,109410.0,109400.0,0.18869968]
[1759040828747,5.14724575,109410.0,109400.0,0.18869968]
[1759040829159,5.18012224,109410.0,109400.0,0.18869968]
[1759040829461,5.13077618,109410.0,109400.0,0.18869968]
[1759040830251,5.13777618,109410.0,109400.0,0.18869968]
[1759040830650,5.18711981,109410.0,109400.0,0.18869968]
[1759040830855,5.18011981,109410.0,109400.0,0.18869968]
[1759040831056,5.19011981,109410.0,109400.0,0.18869968]
[1759040831563,5.27990052,109410.0,109400.0,0.18869968]
[1759040831862,5.0343464,109410.0,109400.0,0.18869968]
[1759040832561,5.44807252,109410.0,109400.0,0.18869968]
[1759040832959,5.0508184,109410.0,109400.0,0.18869968]
[1759040833164,5.0508184,109410.0,109400.0,0.15369968]
[1759040833664,5.44807252,109410.0,109400.0,0.13254968]
[1759040834065,5.0508184,109410.0,109400.0,0.13254968]
[1759040834267,5.44807252,109410.0,109400.0,0.13254968]
[1759040835061,5.44807252,109410.0,109400.0,0.13139448]
[1759040835365,5.44807252,109410.0,109400.0,0.13023928]
[1759040837067,7.30235252,109410.0,109400.0,0.13023928]
[1759040840260,7.33518724,109410.0,109400.0,0.13023928]
[1759040841371,7.30235252,109410.0,109400.0,0.13023928]
[1759040842571,7.33518542,109410.0,109400.0,0.13023928]
[1759040848180,7.30235252,109410.0,109400.0,0.13023928]
[1759040848382,0.0913641,109400.0,109390.0,0.00609319]
[1759040848582,1.72128864,109400.0,109390.0,0.00609319]
[1759040849680,1.7746347,109400.0,109390.0,0.00609319]
[1759040849875,1.73128864,109400.0,109390.0,0.00609319]
[1759040850276,2.14779947,109400.0,109390.0,0.00609319]
[1759040851079,2.22274947,109400.0,109390.0,0.00609319]
[1759040851285,2.30738947,109400.0,109390.0,0.00609319]
[1759040851470,2.30938947,109400.0,109390.0,0.00609319]
[1759040851978,2.46108947,109400.0,109390.0,0.00609319]
[1759040852581,5.14324947,109400.0,109390.0,0.00609319]
[1759040853173,1.26932711,109400.0,109390.0,0.00609319]
[1759040853381,5.14320947,109400.0,109390.0,0.00609319]
[1759040855082,5.50400947,109400.0,109390.0,0.00609319]
[1759040859486,5.10400947,109400.0,109390.0,0.00609319]
[1759040862680,4.8063972,109400.0,109390.0,0.00609319]
[1759040867191,4.75705114,109400.0,109390.0,0.00609319]
[1759040872092,4.8063972,109400.0,109390.0,0.00609319]
[1759040874990,4.8064772,109400.0,109390.0,0.00609319]
[1759040877289,2.1242772,109400.0,109390.0,0.00609319]
[1759040877594,4.8066772,109400.0,109390.0,0.00609319]
[1759040880098,4.75733114,109400.0,109390.0,0.00609319]
[1759040882898,5.15733114,109400.0,109390.0,0.00609319]
[1759040884602,2.47493114,109400.0,109390.0,0.00609319]
[1759040884899,2.54072589,109400.0,109390.0,0.00609319]
[1759040885200,5.22288589,109400.0,109390.0,0.00609319]
[1759040885401,0.0913723,109390.0,109380.0,0.01377]
[1759040885595,1.41868765,109390.0,109380.0,0.01377]
[1759040886498,1.45157887,109390.0,109380.0,0.01377]
[1759040886900,1.45457887,109390.0,109380.0,0.01377]
[1759040887301,1.45757887,109390.0,109380.0,0.01377]
[1759040888001,1.45757803,109390.0,109380.0,0.01377]
[1759040888403,1.54222803,109390.0,109380.0,0.01377]
[1759040888604,1.61718803,109390.0,109380.0,0.01377]
[1759040889903,1.58429765,109390.0,109380.0,0.01377]
[1759040891605,4.26637765,109390.0,109380.0,0.01377]
[1759040892103,4.41807765,109390.0,109380.0,0.01377]
[1759040893305,5.96192025,109390.0,109380.0,0.01377]
[1759040893703,6.32272025,109390.0,109380.0,0.01377]
[1759040899711,6.32572025,109390.0,109380.0,0.01377]
[1759040900107,6.32272025,109390.0,109380.0,0.01377]
[1759040900417,6.32672025,109390.0,109380.0,0.01377]
[1759040900609,3.64464025,109390.0,109380.0,0.01377]
[1759040900806,6.32672025,109390.0,109380.0,0.01377]
[1759040901503,5.60512025,109390.0,109380.0,0.01377]
[1759040901704,6.32672025,109390.0,109380.0,0.01377]
[1759040901913,6.32664025,109390.0,109380.0,0.01377]
[1759040902409,0.0913797,109380.0,109370.0,0.01374]
[1759040902616,1.77526252,109380.0,109370.0,0.03501]
[1759040902806,0.88111243,109380.0,109370.0,0.03501]
[1759040903007,1.77526252,109380.0,109370.0,0.03501]
[1759040903717,1.7854754,109380.0,109370.0,0.03501]
[1759040904410,2.6127154,109380.0,109370.0,0.03501]
[1759040905108,2.6147154,109380.0,109370.0,0.03501]
[1759040905614,2.9755154,109380.0,109370.0,0.03501]
[1759040907611,2.08136531,109380.0,109370.0,0.03501]
[1759040907817,2.9755154,109380.0,109370.0,0.03501]
[1759040909515,2.98353541,109380.0,109370.0,0.03501]
[1759040909824,2.08938532,109380.0,109370.0,0.03501]
[1759040910019,2.98353541,109380.0,109370.0,0.03501]
[1759040915320,3.05849541,109380.0,109370.0,0.03501]
[1759040916625,2.33689541,109380.0,109370.0,0.03501]
[1759040916822,3.05849541,109380.0,109370.0,0.03501]
[1759040917023,3.0354681,109380.0,109370.0,0.03501]
[1759040917322,3.0584396,109380.0,109370.0,0.03501]
[1759040922025,2.3368396,109380.0,109370.0,0.03501]
[1759040922229,3.0584396,109380.0,109370.0,0.03501]
[1759040922529,3.35669786,109380.0,109370.0,0.03501]
[1759040923439,2.52945786,109380.0,109370.0,0.03501]
[1759040923635,3.35753786,109380.0,109370.0,0.03501]
[1759040925541,3.35749786,109380.0,109370.0,0.03501]
[1759040926939,2.52945786,109380.0,109370.0,0.03501]
[1759040927139,3.35757786,109380.0,109370.0,0.03501]
[1759040927639,2.96010841,109380.0,109370.0,0.03501]
[1759040928138,2.13198841,109380.0,109370.0,0.03501]
[1759040928340,2.96010841,109380.0,109370.0,0.03501]
[1759040929845,3.04475841,109380.0,109370.0,0.03501]
[1759040930343,2.21663841,109380.0,109370.0,0.03501]
[1759040930539,3.04479841,109380.0,109370.0,0.03501]
[1759040931241,2.21663841,109380.0,109370.0,0.03501]
[1759040931440,3.04475841,109380.0,109370.0,0.03501]
[1759040934446,3.09409636,109380.0,109370.0,0.03501]
[1759040936746,2.29915746,109380.0,109370.0,0.03501]
[1759040937046,3.09409636,109380.0,109370.0,0.03501]
[1759040937641,3.04475841,109380.0,109370.0,0.03501]
[1759040937846,2.24981951,109380.0,109370.0,0.03501]
[1759040938046,3.04475841,109380.0,109370.0,0.03501]
[1759040938747,3.44222786,109380.0,109370.0,0.03501]
[1759040938947,2.24981951,109380.0,109370.0,0.03501]
[1759040939149,3.44222786,109380.0,109370.0,0.03501]
[1759040941947,3.04475841,109380.0,109370.0,0.03501]
[1759040943751,3.44222786,109380.0,109370.0,0.03501]
[1759040944749,3.04475841,109380.0,109370.0,0.03501]
[1759040954854,3.09409636,109380.0,109370.0,0.03501]
[1759040958351,3.49156581,109380.0,109370.0,0.03501]
[1759040960455,2.66344581,109380.0,109370.0,0.03501]
[1759040960657,3.49116581,109380.0,109370.0,0.03501]
[1759040963361,3.44182786,109380.0,109370.0,0.03501]
[1759040965559,3.44182786,109380.0,109360.0,0.02233]
[1759040965760,1.64460285,109370.0,109360.0,0.01294]
[1759040966060,1.33964215,109370.0,109360.0,0.01294]
[1759040966256,0.0913967,109360.0,109350.0,0.01294]
[1759040966456,2.55781226,109360.0,109350.0,0.01294]
[1759040966659,2.55789756,109360.0,109350.0,0.01294]
[1759040966854,2.55689756,109360.0,109350.0,0.01294]
[1759040967164,2.52402976,109360.0,109350.0,0.01294]
[1759040967561,2.55689756,109360.0,109350.0,0.01294]
[1759040967864,2.46650086,109360.0,109350.0,0.01294]
[1759040968264,2.46650086,109360.0,109350.0,0.03527]
[1759040968565,2.55789756,109360.0,109350.0,0.03527]
[1759040968864,2.55789756,109360.0,109350.0,0.03627]
[1759040969063,2.64256756,109360.0,109350.0,0.03627]
[1759040969262,2.24509811,109360.0,109350.0,0.03627]
[1759040969568,2.28468131,109360.0,109350.0,0.03627]
[1759040969758,1.35700461,109360.0,109350.0,0.03627]
[1759040969952,2.26810461,109360.0,109350.0,0.03627]
[1759040970762,1.52338131,109360.0,109350.0,0.03627]
[1759040970968,2.35994131,109360.0,109350.0,0.03627]
[1759040971360,2.35990131,109360.0,109350.0,0.03627]
[1759040972069,2.35994131,109360.0,109350.0,0.03627]
[1759040976970,2.75741076,109360.0,109350.0,0.01394]
[1759040977171,3.15741076,109360.0,109350.0,0.01394]
[1759040978272,3.19027856,109360.0,109350.0,0.01394]
[1759040979366,3.19227856,109360.0,109350.0,0.01294]
[1759040979566,2.79227856,109360.0,109350.0,0.01294]
[1759040980473,2.79327856,109360.0,109350.0,0.01294]
[1759040982675,2.49557791,109360.0,109350.0,0.01294]
[1759040983565,1.60087021,109360.0,109350.0,0.01294]
[1759040983770,2.49557791,109360.0,109350.0,0.01294]
[1759040986686,2.64737791,109360.0,109350.0,0.01294]
[1759040989286,1.81081791,109360.0,109350.0,0.01294]
[1759040989484,4.50133791,109360.0,109350.0,0.01294]
[1759040990878,0.91611021,109360.0,109350.0,0.01294]
[1759040991078,4.50105791,109360.0,109350.0,0.01294]
[1759040992386,4.55039586,109360.0,109350.0,0.01294]
[1759040995189,4.51752806,109360.0,109350.0,0.01294]
[1759040995384,3.62282036,109360.0,109350.0,0.01294]
[1759040995687,4.51752806,109360.0,109350.0,0.01294]
[1759040997896,1.86015054,109360.0,109350.0,0.01294]
[1759040998189,4.51764806,109360.0,109350.0,0.01294]
[1759040998690,4.55051089,109360.0,109350.0,0.01294]
[1759040999085,1.86015089,109360.0,109350.0,0.01294]
[1759040999288,4.51764806,109360.0,109350.0,0.01294]
[1759041000392,4.50117402,109360.0,109350.0,0.01294]
[1759041000687,3.60634632,109360.0,109350.0,0.01294]
[1759041000888,4.50105402,109360.0,109350.0,0.01294]
[1759041001589,4.50209402,109360.0,109350.0,0.01294]
[1759041002893,1.81081402,109360.0,109350.0,0.01294]
[1759041003092,4.50213402,109360.0,109350.0,0.01294]
[1759041004795,4.50209402,109360.0,109350.0,0.01294]
[1759041005197,4.51856806,109360.0,109350.0,0.01294]
[1759041008900,4.50210772,109360.0,109350.0,0.01294]
[1759041010294,1.81082772,109360.0,109350.0,0.01294]
[1759041011098,4.50166772,109360.0,109350.0,0.01294]
[1759041012202,4.51812806,109360.0,109350.0,0.01294]
[1759041013501,6.08681019,109360.0,109350.0,0.01294]
[1759041016713,6.08657019,109360.0,109350.0,0.01294]
[1759041016899,3.39597019,109360.0,109350.0,0.01294]
[1759041017202,6.08653019,109360.0,109350.0,0.01294]
[1759041017408,6.08649019,109360.0,109350.0,0.01294]
[1759041029506,6.0943213,109360.0,109350.0,0.01294]
[1759041040808,0.44792773,109340.0,109330.0,0.03427]
[1759041041008,2.92065223,109340.0,109330.0,0.03427]
[1759041042201,2.92065223,109340.0,109330.0,0.03527]
[1759041043008,3.00534223,109340.0,109330.0,0.03527]
[1759041043406,3.08033223,109340.0,109330.0,0.03627]
[1759041044318,2.24697223,109340.0,109330.0,0.43627]
[1759041044515,2.98149873,109340.0,109330.0,0.43627]
[1759041045209,2.14761873,109340.0,109330.0,0.43627]
[1759041045415,2.98149873,109340.0,109330.0,0.43627]
[1759041045918,1.35226453,109340.0,109330.0,0.43627]
[1759041046129,2.98141873,109340.0,109330.0,0.43627]
[1759041048115,2.14761873,109340.0,109330.0,0.43627]
[1759041048318,2.98145873,109340.0,109330.0,0.43627]
[1759041052418,2.98165873,109340.0,109330.0,0.43627]
[1759041054622,2.14761873,109340.0,109330.0,0.43627]
[1759041054814,2.98133873,109340.0,109330.0,0.43627]
[1759041055013,1.35226453,109340.0,109330.0,0.43627]
[1759041055209,2.98129873,109340.0,109330.0,0.43627]
[1759041056318,2.18594453,109340.0,109330.0,0.43627]
[1759041056516,2.98129873,109340.0,109330.0,0.43627]
[1759041056714,0.90606924,109340.0,109330.0,0.5276915]
[1759041056918,1.50751944,109340.0,109330.0,0.9253686]
[1759041057424,1.50751944,109340.0,109330.0,0.5276915]
[1759041057823,1.90519654,109340.0,109330.0,0.5276915]
[1759041058621,1.10984234,109340.0,109330.0,0.5276915]
[1759041058826,1.90519654,109340.0,109330.0,0.5276915]
[1759041059726,1.90519654,109340.0,109330.0,0.43627]
[1759041060117,2.26599654,109340.0,109330.0,0.43627]
[1759041060518,1.47064234,109340.0,109330.0,0.43627]
[1759041060719,2.26599654,109340.0,109330.0,0.43627]
[1759041063625,1.47064234,109340.0,109330.0,0.43627]
[1759041063823,2.26599654,109340.0,109330.0,0.43627]
[1759041065227,2.26599654,109340.0,109330.0,0.5276915]
[1759041066324,2.26775654,109340.0,109330.0,0.5276915]
[1759041068326,2.26775654,109340.0,109330.0,0.43627]
[1759041069934,2.66543364,109340.0,109330.0,0.03627]
[1759041070638,2.26775654,109340.0,109330.0,0.03627]
[1759041071727,1.43203654,109340.0,109330.0,0.03627]
[1759041072035,2.26795654,109340.0,109330.0,0.03627]
[1759041073136,1.50547977,109340.0,109330.0,0.03627]
[1759041073439,2.30083397,109340.0,109330.0,0.03627]
[1759041077039,2.26795654,109340.0,109330.0,0.03627]
[1759041078744,2.30083397,109340.0,109330.0,0.03627]
[1759041079848,2.26795654,109340.0,109330.0,0.03627]
[1759041080444,2.26801393,109340.0,109330.0,0.03627]
[1759041081944,2.41981393,109340.0,109330.0,0.03627]
[1759041082147,2.26801393,109340.0,109330.0,0.03627]
[1759041087550,2.26733393,109340.0,109330.0,0.03627]
[1759041087751,2.30021136,109340.0,109330.0,0.03627]
[1759041089152,2.26733393,109340.0,109330.0,0.03627]
[1759041091553,1.43209393,109340.0,109330.0,0.03627]
[1759041091745,2.26689393,109340.0,109330.0,0.03627]
[1759041092858,2.26693393,109340.0,109330.0,0.03627]
[1759041095258,2.26661393,109340.0,109330.0,0.03627]
[1759041097854,1.43209393,109340.0,109330.0,0.03627]
[1759041098059,2.26637393,109340.0,109330.0,0.03627]
[1759041098258,2.29925136,109340.0,109330.0,0.03627]
[1759041106570,2.39876662,109340.0,109330.0,0.03627]
[1759041110373,2.41981322,109340.0,109330.0,0.03627]
[1759041116065,2.57161322,109340.0,109330.0,0.01494]
[1759041117271,2.57161322,109340.0,109330.0,0.01394]
[1759041117473,2.57361322,109340.0,109330.0,0.01394]
[1759041117673,2.57461322,109340.0,109330.0,0.01294]
[1759041118989,1.74033322,109340.0,109330.0,0.01294]
[1759041119192,2.57385322,109340.0,109330.0,0.01294]
[1759041121494,2.57365322,109340.0,109330.0,0.01294]
[1759041123888,2.55260662,109340.0,109330.0,0.01294]
[1759041124088,2.57388186,109340.0,109330.0,0.01294]
[1759041124490,0.0914215,109330.0,109320.0,0.01294]
[1759041124792,0.38382889,109330.0,109320.0,1.03102964]
[1759041125090,2.3696232,109360.0,109350.0,0.03428]
[1759041125306,1.73253183,109360.0,109350.0,0.69336982]
[1759041125591,3.16367147,109360.0,109350.0,0.79508]
[1759041125996,3.20629891,109360.0,109350.0,0.39508]
[1759041126294,2.35070147,109360.0,109350.0,0.39508]
[1759041126494,3.18602147,109360.0,109350.0,0.39508]
[1759041126695,3.48439129,109360.0,109350.0,0.39508]
[1759041126886,3.57606129,109360.0,109350.0,0.39508]
[1759041127586,3.65104129,109360.0,109350.0,0.39508]
[1759041127790,3.65604129,109360.0,109350.0,0.39508]
[1759041128194,3.67710887,109360.0,109350.0,0.39508]
[1759041129396,3.67510887,109360.0,109350.0,0.39508]
[1759041130196,3.67310887,109360.0,109350.0,0.39508]
[1759041130395,3.67610887,109360.0,109350.0,0.39508]
[1759041131487,3.67810887,109360.0,109350.0,0.39508]
[1759041132095,3.58671017,109360.0,109350.0,0.39508]
[1759041133797,3.58671017,109360.0,109350.0,0.4864847]
[1759041134897,3.67810657,109360.0,109350.0,0.4864847]
[1759041135896,2.10942444,109360.0,109350.0,0.4864847]
[1759041136901,2.13226253,109360.0,109350.0,0.4864847]
[1759041138903,2.4197448,109360.0,109350.0,0.4864847]
[1759041142205,2.4127448,109360.0,109350.0,0.4864847]
[1759041143804,2.4147448,109360.0,109350.0,0.4864847]
[1759041143992,2.4117448,109360.0,109350.0,0.4864847]